bitfinex-derivatives/quotes_ETHF0:USTF0_20240927
["timestamp","ask_amount","ask_price","bid_price","bid_amount"]
[1727445445633,0.4524,2660.3,2660.0,3.23]
[1727445446031,0.4524,2660.3,2660.0,3.60583]
[1727445446230,4.03478,2660.5,2660.2,3.23]
[1727445446231,3.659,2660.5,2660.2,3.23]
[1727445446430,3.2078,2660.5,2660.2,3.23]
[1727445447026,3.2078,2660.5,2660.3,3.7592]
[1727445447232,0.4479,2661.2,2660.4,3.23]
[1727445447433,0.82358,2661.2,2660.8,3.23]
[1727445448033,0.4479,2661.2,2660.8,3.23]
[1727445448237,0.82358,2661.2,2660.8,3.23]
[1727445448434,4.1467,2662.1,2661.0,3.23]
[1727445448632,3.58339,2661.8,2661.6,3.23]
[1727445449032,3.2078,2661.8,2661.6,3.23]
[1727445449238,0.3756,2661.7,2661.6,3.23]
[1727445449440,3.2078,2661.8,2661.6,3.23]
[1727445449841,3.2078,2661.8,2661.7,3.7568]
[1727445450231,3.2078,2661.8,2661.4,3.23]
[1727445450431,3.2078,2661.8,2661.2,0.4415]
[1727445450647,3.58339,2661.8,2661.3,0.37565]
[1727445451145,0.37561,2661.7,2661.3,0.37565]
[1727445451542,3.58339,2661.8,2661.4,0.37564]
[1727445451740,0.3756,2661.7,2661.3,0.37565]
[1727445451947,3.2078,2661.8,2661.3,0.37565]
[1727445452145,3.5834,2661.8,2661.4,0.37564]
[1727445452341,3.58339,2661.8,2661.4,0.37564]
[1727445452544,3.2078,2661.8,2661.5,0.37563]
[1727445452849,0.37557,2662.0,2661.6,0.37561]
[1727445453145,3.58337,2662.0,2661.4,7.1778]
[1727445453450,0.82344,2662.1,2661.7,0.37559]
[1727445453646,0.4479,2662.1,2661.8,3.97]
[1727445453942,3.2078,2662.3,2661.8,3.97]
[1727445454135,3.2078,2662.3,2661.9,0.4342]
[1727445454335,3.2078,2662.3,2662.1,3.97]
[1727445454541,3.2078,2662.3,2662.2,0.37553]
[1727445454743,0.4585,2662.8,2662.1,7.726]
[1727445454950,3.2078,2662.9,2662.5,3.97]
[1727445455141,3.2078,2662.9,2662.8,3.97]
[1727445455446,0.4585,2663.3,2662.8,3.97]
[1727445455648,0.37539,2663.2,2662.8,3.97]
[1727445455847,0.4585,2663.3,2663.0,0.37541]
[1727445456048,3.2078,2663.5,2662.8,3.97]
[1727445456545,3.2078,2663.5,2663.2,0.37539]
[1727445456747,3.2078,2663.5,2663.3,3.7544]
[1727445456939,3.2078,2664.0,2663.4,3.97]
[1727445457450,3.2078,2664.0,2663.5,0.37534]
[1727445457642,3.2078,2664.0,2663.6,0.37533]
[1727445457842,3.2078,2664.0,2663.5,0.37534]
[1727445458243,3.58308,2664.0,2663.4,3.97]
[1727445458549,3.2078,2664.0,2663.6,4.05024819]
[1727445458856,3.2078,2664.0,2663.8,3.97]
[1727445460744,3.2078,2664.0,2662.9,0.4249]
[1727445460946,0.4558,2664.1,2663.9,3.97]
[1727445461248,3.2078,2664.4,2663.9,3.97]
[1727445461451,0.37523,2664.3,2663.9,3.97]
[1727445461646,0.37525,2664.3,2663.9,3.97]
[1727445461845,0.37525,2664.2,2663.9,3.97]
[1727445462048,3.2078,2664.4,2663.9,3.97]
[1727445462245,3.2078,2664.4,2663.7,3.2078]
[1727445462654,0.37525,2664.2,2663.8,4.1165115]
[1727445462854,3.2078,2664.4,2663.7,3.2078]
[1727445463047,0.37525,2664.3,2663.9,3.97]
[1727445463450,3.2078,2664.4,2663.9,3.97]
[1727445463950,0.37524,2664.3,2663.9,3.97]
[1727445464147,3.2078,2664.4,2663.9,3.97]
[1727445464455,0.37524,2664.3,2663.9,3.97]
[1727445465664,3.58302,2664.4,2663.9,4.34528]
[1727445466055,3.2078,2664.4,2663.9,3.97]
[1727445466263,3.2078,2664.4,2664.0,0.37527]
[1727445466555,3.2078,2664.4,2663.9,3.97]
[1727445466556,3.58302,2664.4,2663.9,3.97]
[1727445466750,3.58302,2664.4,2663.9,4.34528]
[1727445466950,3.58302,2664.4,2663.9,3.97]
[1727445466951,0.37524,2664.3,2663.9,3.97]
[1727445467543,0.37524,2664.3,2663.7,3.2078]
[1727445467544,3.2078,2664.1,2663.7,3.2078]
[1727445467757,3.2078,2664.1,2663.2,3.97]
[1727445468056,3.2078,2664.1,2663.6,3.97]
[1727445468261,0.4226,2664.2,2663.7,3.2078]
[1727445468759,0.4226,2664.2,2663.6,3.97]
[1727445468760,3.2078,2664.5,2663.9,3.97]
[1727445469066,0.37527,2664.1,2663.7,0.37531]
[1727445469255,0.37528,2664.0,2663.6,3.97]
[1727445469552,0.93813,2664.2,2663.6,3.97]
[1727445469753,0.93813,2664.2,2663.4,3.2078]
[1727445469754,3.6441,2664.2,2663.4,3.2078]
[1727445469948,0.37532,2663.7,2663.5,0.37534]
[1727445470153,1.37719,2664.1,2663.4,3.58316]
[1727445470154,0.9382,2664.0,2663.4,3.58316]
[1727445470457,0.37534,2663.6,2663.4,3.2078]
[1727445470860,3.2078,2663.9,2663.5,0.37535]
[1727445471058,0.37535,2663.5,2663.4,3.2078]
[1727445471263,0.37538,2663.3,2663.0,0.37541]
[1727445471654,3.2078,2663.6,2662.9,3.97]
[1727445471849,0.93837,2663.5,2662.7,3.2078]
[1727445472055,1.79647,2663.5,2662.7,3.2078]
[1727445472255,0.37544,2662.9,2662.6,4.78607]
[1727445472461,0.37546,2662.7,2662.6,3.97]
[1727445472761,0.37547,2662.7,2662.4,0.3755]
[1727445472961,0.3755,2662.5,2662.3,3.97]
[1727445473173,0.3755,2662.5,2662.2,0.37553]
[1727445473358,0.3755,2662.4,2662.1,0.37553]
[1727445473862,0.3755,2662.4,2662.1,4.48916336]
[1727445474170,1.909,2663.4,2661.9,0.37557]
[1727445474171,0.37554,2662.2,2661.9,0.37557]
[1727445474367,4.14647,2662.7,2661.6,3.2078]
[1727445474368,0.37558,2661.9,2661.6,3.58341]
[1727445474557,3.6286,2662.4,2661.7,8.04584817]
[1727445474756,0.37549,2662.5,2662.2,0.37553]
[1727445475255,3.6483,2662.7,2662.1,3.97]
[1727445475256,0.37548,2662.6,2662.3,0.37551]
[1727445475456,3.6483,2662.7,2662.1,3.97]
[1727445475657,0.37547,2662.6,2662.1,3.97]
[1727445475859,0.37547,2662.6,2662.4,0.3755]
[1727445476066,3.6483,2662.7,2662.5,0.37548]
[1727445476261,3.6483,2662.7,2662.1,3.97]
[1727445476864,3.6483,2662.7,2662.5,0.37548]
[1727445477059,3.6483,2662.7,2662.1,3.97]
[1727445477060,4.02376,2662.7,2662.4,0.37549]
[1727445477254,3.6483,2662.7,2662.1,3.97]
[1727445477462,2.70907125,2662.7,2662.1,3.97]
[1727445477661,2.70907125,2662.7,2662.5,0.37548]
[1727445477862,0.37547,2662.6,2662.4,0.3755]
[1727445478068,2.70907125,2662.7,2662.1,3.97]
[1727445478069,3.64775125,2662.7,2662.2,0.37552]
[1727445478364,0.93869,2662.6,2662.1,3.97]
[1727445478563,2.70907125,2662.7,2662.2,0.37553]
[1727445478763,2.70907125,2662.7,2662.1,3.97]
[1727445478963,2.70907125,2662.7,2662.6,0.37547]
[1727445479270,0.37548,2662.6,2662.3,0.37551]
[1727445479466,2.70907125,2662.7,2662.3,0.37551]
[1727445479666,2.70907125,2662.7,2662.1,3.97]
[1727445480265,3.2078,2662.9,2662.1,3.97]
[1727445480464,3.2078,2662.9,2662.0,3.2078]
[1727445480465,0.4208,2663.0,2662.7,0.37545]
[1727445480681,0.4208,2663.0,2662.4,3.97]
[1727445480971,0.37547,2662.6,2662.4,3.97]
[1727445481170,0.37548,2662.6,2662.4,3.97]
[1727445481370,0.37548,2662.6,2662.5,3.756]
[1727445481564,0.93866,2662.7,2662.1,4.34553]
[1727445481764,3.2078,2662.9,2662.1,4.34553]
[1727445481765,0.93864,2662.8,2662.2,0.37552]
[1727445481966,0.93866,2662.7,2662.1,3.97]
[1727445482376,0.3755,2662.5,2662.1,3.97]
[1727445482563,0.37549,2662.5,2662.2,0.37552]
[1727445482965,3.2078,2662.6,2662.1,3.97]
[1727445483170,3.2078,2662.6,2661.9,0.4626]
[1727445483171,0.37553,2662.2,2661.9,0.37557]
[1727445483369,0.427,2662.5,2661.8,4.4164]
[1727445483667,0.37547,2662.7,2662.4,0.37549]
[1727445484170,0.37545,2662.8,2662.5,3.97]
[1727445484373,4.01734,2662.9,2662.5,3.97]
[1727445484581,3.58324,2662.9,2662.6,0.37547]
[1727445485071,3.2078,2662.9,2662.5,4.34548]
[1727445485280,0.37548,2662.6,2662.1,7.1778]
[1727445485570,0.37548,2662.6,2662.3,0.37551]
[1727445485768,0.37547,2662.7,2662.4,0.3755]
[1727445486173,0.37547,2662.7,2662.1,7.1778]
[1727445486174,3.2078,2662.9,2662.5,3.97]
[1727445486370,3.2078,2662.9,2662.7,0.37545]
[1727445486676,3.2078,2662.9,2662.8,0.37545]
[1727445487077,2.64431016,2662.9,2662.7,0.37545]
[1727445487376,3.01974016,2662.9,2662.6,0.37547]
[1727445487766,0.37545,2662.8,2662.6,0.37547]
[1727445488270,2.64431016,2662.9,2662.6,0.37547]
[1727445488580,0.37546,2662.8,2662.5,3.97]
[1727445488771,0.37546,2662.8,2662.6,0.37547]
[1727445489463,0.37545,2662.8,2662.5,4.34548]
[1727445489977,0.93866,2662.7,2662.2,4.34553]
[1727445490167,0.3755,2662.5,2662.2,4.34552]
[1727445490564,0.37545,2662.8,2662.2,3.97]
[1727445490773,2.64431016,2662.9,2662.4,0.3755]
[1727445490978,0.37546,2662.7,2662.4,0.37549]
[1727445491175,0.37546,2662.7,2662.5,0.37549]
[1727445491368,3.58291016,2662.9,2662.6,0.37547]
[1727445491369,0.37545,2662.8,2662.6,0.37547]
[1727445491569,0.37545,2662.8,2662.2,4.90881]
[1727445491765,0.37545,2662.8,2662.6,0.37547]
[1727445492265,0.37546,2662.7,2662.6,3.22]
[1727445492870,0.37545,2662.8,2662.6,3.59547]
[1727445493170,0.37546,2662.7,2662.6,3.22]
[1727445493371,0.37549,2662.5,2662.3,3.22]
[1727445493574,0.4449,2662.8,2662.3,3.22]
[1727445493773,0.4449,2662.8,2662.5,0.37548]
[1727445493774,0.82035,2662.8,2662.5,0.37548]
[1727445494075,0.37548,2662.6,2662.3,3.59551]
[1727445494485,0.37548,2662.6,2662.4,0.3755]
[1727445494784,0.37548,2662.6,2662.0,3.59555]
[1727445494785,0.37553,2662.2,2662.0,3.59555]
[1727445494981,0.37554,2662.2,2662.0,3.59555]
[1727445495176,1.37133,2662.5,2662.0,3.22]
[1727445495177,0.37554,2662.1,2662.0,3.22]
[1727445495872,0.37552,2662.3,2662.1,0.37554]
[1727445496079,0.80621,2662.4,2662.2,3.22]
[1727445496282,0.37552,2662.3,2662.2,3.22]
[1727445496772,1.36948,2662.4,2662.0,3.22]
[1727445497575,0.4307,2662.4,2662.0,3.22]
[1727445497775,0.37552,2662.3,2662.2,3.22]
[1727445498371,0.4307,2662.4,2662.0,3.22]
[1727445498574,0.93883,2662.2,2661.8,0.98462556]
[1727445498769,0.37558,2661.9,2661.7,4.20462556]
[1727445498975,0.93888,2662.1,2661.7,3.22]
[1727445499179,1.37493,2662.2,2661.5,4.20462556]
[1727445499180,0.93894,2661.9,2661.5,4.20462556]
[1727445499377,0.93894,2661.9,2661.3,3.2078]
[1727445499378,0.37563,2661.5,2661.3,7.41242556]
[1727445499572,0.93902,2661.7,2661.3,7.41242556]
[1727445499573,0.37562,2661.6,2661.4,0.37564]
[1727445499778,3.2078,2661.7,2661.3,6.80345]
[1727445499779,0.37563,2661.5,2661.3,6.80345]
[1727445499972,0.37563,2661.5,2661.3,6.4278]
[1727445500178,0.37564,2661.4,2661.3,6.4278]
[1727445500372,0.37564,2661.4,2661.3,3.2078]
[1727445500784,0.37563,2661.5,2661.3,3.2078]
[1727445501176,0.37563,2661.6,2661.3,3.58345]
[1727445501371,3.2078,2661.7,2661.3,3.58345]
[1727445501372,3.58341,2661.7,2661.4,0.37564]
[1727445501578,0.37562,2661.6,2661.3,3.58345]
[1727445501780,3.58341,2661.7,2661.4,0.37564]
[1727445502380,3.58341,2661.7,2661.3,3.2078]
[1727445502381,3.2078,2661.7,2661.3,3.2078]
[1727445502683,3.2078,2661.7,2661.0,1.81281556]
[1727445502982,0.93916,2661.3,2660.9,0.98462556]
[1727445503194,3.2078,2661.4,2660.9,0.37571]
[1727445503576,0.3757,2661.0,2660.7,4.56816556]
[1727445503775,0.3757,2661.0,2660.7,4.19242556]
[1727445503981,0.4114,2661.2,2660.7,3.58354]
[1727445504180,0.37571,2660.9,2660.6,1.36037556]
[1727445504373,0.4114,2661.2,2660.5,5.86253834]
[1727445504374,3.6161,2661.1,2660.5,4.3856]
[1727445504574,3.6161,2661.1,2660.6,0.37574]
[1727445504777,0.37572,2660.9,2660.6,0.37574]
[1727445504977,0.37573,2660.8,2660.5,4.76136]
[1727445505282,3.6161,2661.1,2660.5,4.3856]
[1727445505283,3.2078,2661.1,2660.5,4.3856]
[1727445505479,0.37561,2661.6,2661.3,0.37565]
[1727445505672,0.37561,2661.6,2661.0,7.1778]
[1727445505985,0.37561,2661.6,2661.3,0.37565]
[1727445506174,4.83141,2661.7,2661.3,0.37565]
[1727445506371,4.83141,2661.7,2661.4,3.97]
[1727445506372,0.4114,2661.7,2661.4,3.97]
[1727445506582,3.2078,2662.1,2661.4,3.97]
[1727445506583,3.6161,2662.1,2661.4,3.97]
[1727445506779,0.37557,2661.9,2661.4,4.34563]
[1727445506970,0.4448,2662.0,2661.4,4.34563]
[1727445506971,0.37559,2661.8,2661.4,4.34563]
[1727445507177,0.4448,2662.0,2661.5,0.37562]
[1727445507178,0.37558,2661.9,2661.5,0.37562]
[1727445507376,0.4448,2662.0,2661.4,3.97]
[1727445507576,3.6161,2662.1,2661.7,3.97]
[1727445507784,3.99165,2662.1,2661.7,3.97]
[1727445508083,3.99165,2662.1,2661.7,4.34559]
[1727445508084,3.6161,2662.1,2661.7,4.34559]
[1727445510889,3.2078,2662.2,2661.7,3.97]
[1727445511082,3.2078,2662.2,2661.8,0.37559]
[1727445511487,3.2078,2662.2,2661.8,0.37558]
[1727445511785,3.2078,2662.2,2661.7,3.97]
[1727445511979,0.37558,2661.9,2661.5,3.2078]
[1727445512177,0.37561,2661.7,2661.4,3.97]
[1727445512389,0.37559,2661.8,2661.4,3.97]
[1727445512783,0.37559,2661.8,2661.3,1.36028556]
[1727445512784,3.2078,2661.9,2661.3,0.98462556]
[1727445512992,3.2078,2661.9,2661.2,0.4399]
[1727445512993,0.37563,2661.6,2661.2,0.4399]
[1727445513188,0.37564,2661.5,2661.1,4.60532556]
[1727445513588,0.37564,2661.4,2661.1,4.60532556]
[1727445513782,0.4247,2661.6,2661.1,4.60532556]
[1727445513986,0.4247,2661.6,2661.1,3.6207]
[1727445514192,0.37565,2661.4,2661.1,3.6207]
[1727445514498,0.37565,2661.4,2661.1,4.60532556]
[1727445514696,1.36377,2661.6,2661.1,1.39752556]
[1727445514898,1.36377,2661.6,2661.1,0.4129]
[1727445514899,0.37566,2661.3,2661.1,0.4129]
[1727445515090,4.57157,2661.6,2661.1,0.4129]
[1727445515091,0.37565,2661.4,2661.1,0.4129]
[1727445515498,0.37565,2661.4,2661.1,1.39752556]
[1727445515695,0.37566,2661.3,2661.1,1.39752556]
[1727445516289,0.37567,2661.2,2661.1,0.4129]
[1727445516697,0.37566,2661.3,2661.1,1.39752556]
[1727445516894,0.37565,2661.4,2661.1,1.39752556]
[1727445517202,0.37566,2661.3,2661.1,1.39752556]
[1727445517588,1.36378,2661.6,2661.1,1.39752556]
[1727445517789,0.93908,2661.5,2661.1,1.39752556]
[1727445517985,0.37567,2661.2,2661.1,1.39752556]
[1727445518189,0.93908,2661.5,2661.1,1.39752556]
[1727445518389,0.37565,2661.4,2661.1,1.77320556]
[1727445518589,0.4247,2661.6,2661.1,1.77320556]
[1727445518590,0.37564,2661.5,2661.1,1.39752556]
[1727445519002,0.37565,2661.4,2661.1,1.39752556]
[1727445519204,0.37566,2661.4,2661.1,1.39752556]
[1727445519498,0.37566,2661.3,2661.2,0.98462556]
[1727445519691,0.37565,2661.4,2661.2,0.98462556]
[1727445519892,0.37566,2661.3,2661.2,0.98462556]
[1727445520199,1.36376,2661.6,2661.2,0.98462556]
[1727445520710,0.37566,2661.3,2661.2,0.98462556]
[1727445520898,0.37566,2661.3,2661.1,1.39752556]
[1727445521109,0.37567,2661.2,2661.1,1.39752556]
[1727445521595,0.37566,2661.3,2661.1,1.78353312]
[1727445521797,0.37566,2661.3,2661.2,0.97742393]
[1727445522099,0.37567,2661.2,2661.1,1.39032393]
[1727445522299,3.58345,2661.4,2661.1,0.97742393]
[1727445522497,0.4247,2661.6,2661.2,3.23]
[1727445522795,0.4247,2661.6,2661.1,0.97742393]
[1727445522796,3.2078,2661.8,2661.6,0.37561]
[1727445523001,3.2078,2661.8,2661.6,3.23]
[1727445523204,3.2078,2661.8,2661.6,3.60561]
[1727445523396,3.58339,2661.8,2661.6,3.23]
[1727445523594,3.2078,2661.8,2661.6,3.60561]
[1727445523897,3.58339,2661.8,2661.6,3.23]
[1727445524098,0.37561,2661.6,2661.4,0.97742393]
[1727445524301,0.93903,2661.7,2661.3,2.45436227]
[1727445524504,3.2078,2661.8,2661.3,0.97742393]
[1727445524704,0.37563,2661.5,2661.3,0.97742393]
[1727445525608,0.37564,2661.4,2661.3,0.97742393]
[1727445525806,0.93901,2661.7,2661.3,0.97742393]
[1727445526106,0.37563,2661.5,2661.3,0.97742393]
[1727445526306,0.37563,2661.5,2661.3,1.35308393]
[1727445526500,0.93901,2661.7,2661.3,0.97742393]
[1727445526701,0.37563,2661.6,2661.3,1.35308393]
[1727445526912,3.2078,2661.8,2661.4,3.23]
[1727445527208,6.251,2662.7,2661.4,3.23]
[1727445527209,4.6778,2662.7,2661.7,1.47693834]
[1727445527508,0.37554,2662.2,2661.9,4.58236345]
[1727445527895,0.37554,2662.2,2662.0,0.97679345]
[1727445528092,0.37554,2662.2,2661.9,4.58236345]
[1727445528300,0.37554,2662.2,2662.0,0.97679345]
[1727445528704,0.37554,2662.1,2662.0,0.97679345]
[1727445529108,4.14656,2662.4,2661.9,4.58236345]
[1727445529109,0.37554,2662.2,2661.9,4.58236345]
[1727445529803,4.14656,2662.4,2661.9,4.58236345]
[1727445529804,0.37554,2662.1,2661.9,4.58236345]
[1727445530706,0.37554,2662.2,2661.9,4.58236345]
[1727445531104,0.37555,2662.1,2661.9,4.20679345]
[1727445531410,0.93881,2662.3,2661.9,0.97679345]
[1727445531701,0.37555,2662.1,2662.0,0.97679345]
[1727445532901,0.80374,2662.2,2662.0,0.97679345]
[1727445533307,0.4282,2662.2,2662.0,0.97679345]
[1727445533897,0.4282,2662.2,2662.1,1.35233345]
[1727445534095,3.58327,2662.7,2662.2,0.37553]
[1727445534299,0.37548,2662.6,2662.3,3.23]
[1727445534509,0.37548,2662.6,2662.4,0.3755]
[1727445534704,0.37548,2662.6,2662.3,3.60551]
[1727445534909,3.2078,2662.7,2662.5,0.37548]
[1727445535408,3.2078,2662.7,2662.6,0.37547]
[1727445536312,0.4189,2662.8,2662.7,0.37546]
[1727445536615,1.449,2663.3,2662.7,0.37546]
[1727445536616,0.93843,2663.4,2662.8,0.37543]
[1727445536811,0.3754,2663.2,2662.8,4.58222345]
[1727445537105,0.3754,2663.2,2662.8,1.35222345]
[1727445537315,0.3754,2663.2,2662.9,0.37543]
[1727445537503,3.2078,2663.5,2662.8,4.20679345]
[1727445537808,0.3754,2663.2,2663.0,0.97679345]
[1727445538312,3.2078,2663.5,2663.0,1.35220345]
[1727445538313,0.37539,2663.3,2663.0,1.35220345]
[1727445538711,0.3754,2663.2,2663.0,0.97679345]
[1727445538911,0.37538,2663.3,2663.0,1.35220345]
[1727445539105,0.93841,2663.4,2663.0,0.97679345]
[1727445539306,0.3754,2663.2,2663.0,0.97679345]
[1727445539505,0.3754,2663.1,2663.0,0.97679345]
[1727445539804,0.37542,2663.0,2662.9,0.97679345]
[1727445540005,0.37543,2662.9,2662.8,0.97679345]
[1727445540202,1.66893,2662.9,2662.7,0.97679345]
[1727445540413,1.66893,2662.9,2662.6,1.85240834]
[1727445540414,0.37546,2662.7,2662.6,0.97679345]
[1727445540605,0.37545,2662.8,2662.5,1.35227345]
[1727445540800,4.5013,2662.9,2662.5,0.97679345]
[1727445541009,0.37547,2662.7,2662.5,0.97679345]
[1727445541317,0.37547,2662.6,2662.5,0.97679345]
[1727445541514,0.37547,2662.7,2662.5,0.97679345]
[1727445541700,0.37545,2662.8,2662.5,4.58227345]
[1727445541903,4.5013,2662.9,2662.5,4.58227345]
[1727445541904,4.5013,2662.9,2662.5,4.20679345]
[1727445542106,4.5013,2662.9,2662.4,4.18459345]
[1727445542107,0.37549,2662.5,2662.4,4.18459345]
[1727445542304,0.37548,2662.6,2662.4,3.2078]
[1727445543008,0.37549,2662.5,2662.4,3.2078]
[1727445543816,0.37547,2662.7,2662.4,3.2078]
[1727445544116,0.37547,2662.6,2662.4,3.2078]
[1727445544612,4.87674,2662.9,2662.4,3.2078]
[1727445544815,1.66894,2662.9,2662.6,0.37547]
[1727445545417,1.26264,2662.9,2662.6,0.37547]
[1727445545717,0.37545,2662.8,2662.6,1.41959345]
[1727445546015,0.37545,2662.8,2662.6,0.4428]
[1727445546221,0.37546,2662.7,2662.6,1.41959345]
[1727445546414,0.8872,2662.9,2662.6,0.4428]
[1727445546717,0.8872,2662.9,2662.6,1.79506345]
[1727445546718,1.26264,2662.9,2662.6,1.79506345]
[1727445546920,0.4084,2663.3,2662.7,3.23]
[1727445547218,0.4084,2663.3,2662.7,3.60545]
[1727445547219,0.37542,2663.0,2662.7,3.60545]
[1727445547421,1.76006,2663.3,2662.8,0.37544]
[1727445547610,0.3754,2663.2,2662.9,0.37543]
[1727445547807,0.3754,2663.1,2662.8,0.37544]
[1727445548010,0.4132,2663.3,2662.9,3.23]
[1727445548521,0.37539,2663.2,2663.0,0.37542]
[1727445548712,0.37542,2663.0,2662.8,1.35223345]
[1727445548911,0.3754,2663.2,2662.9,0.37542]
[1727445549116,0.4132,2663.3,2662.9,0.37542]
[1727445549516,0.37539,2663.2,2662.9,0.37542]
[1727445549718,0.37541,2663.1,2662.7,1.39009345]
[1727445549915,0.37541,2663.1,2662.9,0.37543]
[1727445550116,0.4132,2663.3,2662.7,1.39009345]
[1727445550311,0.37538,2663.3,2662.9,3.23]
[1727445550515,3.2078,2663.4,2662.9,3.23]
[1727445550822,0.37538,2663.3,2663.1,0.3754]
[1727445551215,0.3754,2663.2,2662.9,1.35221345]
[1727445551522,0.93848,2663.2,2662.7,0.78876]
[1727445551820,3.2078,2663.4,2663.1,3.23]
[1727445552212,3.2078,2663.4,2663.1,3.6054]
[1727445552730,3.58316,2663.4,2663.1,3.23]
[1727445552920,3.2078,2663.4,2663.1,3.6054]
[1727445553424,3.2078,2663.4,2663.1,3.23]
[1727445553622,3.2078,2663.4,2663.2,0.80438]
[1727445554418,3.2078,2663.4,2663.2,0.429]
[1727445554620,3.2078,2663.4,2663.2,0.80438]
[1727445554823,3.2078,2663.4,2663.2,0.429]
[1727445555226,3.2078,2663.4,2663.2,0.80439]
[1727445555526,0.81594,2663.6,2663.2,0.80439]
[1727445556230,1.37343,2664.0,2663.4,0.37536]
[1727445556231,0.37531,2663.8,2663.4,0.37536]
[1727445556729,1.3065,2664.0,2663.3,0.4129]
[1727445556730,0.37532,2663.7,2663.3,0.78827]
[1727445557126,0.37533,2663.6,2663.3,0.78827]
[1727445557323,0.37533,2663.6,2663.3,0.4129]
[1727445557624,4.6928,2663.5,2662.9,0.97679345]
[1727445557831,0.3754,2663.2,2662.8,1.35223345]
[1727445558624,2.17134,2663.4,2662.7,1.40869345]
[1727445558836,0.93848,2663.2,2662.7,1.40869345]
[1727445559132,0.37543,2662.9,2662.7,0.4319]
[1727445559321,0.37543,2663.0,2662.7,0.80736]
[1727445559525,0.37545,2662.8,2662.7,0.4319]
[1727445560729,0.37544,2662.9,2662.7,0.4319]
[1727445561730,0.37542,2663.0,2662.8,0.37545]
[1727445562031,0.37542,2663.0,2662.7,0.80735]
[1727445562434,0.37542,2663.0,2662.8,0.37544]
[1727445562817,0.37541,2663.1,2662.9,0.37543]
[1727445563022,0.37541,2663.1,2662.8,3.60543]
[1727445563321,3.2078,2663.2,2662.9,0.37543]
[1727445563522,3.5832,2663.2,2662.9,0.37543]
[1727445563718,3.2078,2663.2,2662.8,3.23]
[1727445563923,3.2078,2663.2,2663.0,0.37541]
[1727445564327,3.2078,2663.2,2663.1,0.3754]
[1727445564528,0.93835,2663.6,2663.2,0.37539]
[1727445564724,0.37536,2663.5,2663.2,0.37539]
[1727445564926,0.37537,2663.4,2663.1,3.60539]
[1727445565527,0.37535,2663.5,2663.2,0.37538]
[1727445565828,0.37535,2663.5,2663.3,0.4417]
[1727445566024,0.8694,2663.7,2663.3,0.4417]
[1727445566219,1.24473,2663.7,2663.4,0.37536]
[1727445567023,0.37533,2663.7,2663.4,0.37536]
[1727445567230,0.37533,2663.6,2663.3,4.04707]
[1727445567830,0.4191,2663.9,2663.3,4.64849345]
[1727445568032,3.58309,2664.0,2663.5,3.23]
[1727445568228,3.2078,2664.0,2663.6,3.58312]
[1727445568423,0.3753,2663.9,2663.6,1.35211345]
[1727445568933,3.2078,2664.0,2663.7,0.37532]
[1727445569237,0.37527,2664.1,2663.6,0.97679345]
[1727445569442,4.14591,2664.3,2663.7,0.37531]
[1727445569735,0.93813,2664.2,2663.6,0.97679345]
[1727445569934,3.2078,2664.0,2663.8,0.3753]
[1727445570132,0.37524,2664.3,2663.9,3.60528]
[1727445570328,0.37524,2664.3,2663.9,4.98807345]
[1727445570741,0.37524,2664.3,2663.9,4.98808345]
[1727445570931,1.2869,2664.4,2663.9,0.406]
[1727445571135,0.37523,2664.3,2663.9,0.406]
[1727445571327,0.37524,2664.3,2663.9,1.38279345]
[1727445571530,1.66213,2664.4,2663.9,1.75808345]
[1727445571736,0.37524,2664.3,2663.9,1.38279345]
[1727445572031,1.66213,2664.4,2663.9,0.78129]
[1727445572231,0.37524,2664.3,2663.9,0.406]
[1727445572436,4.16798,2664.7,2664.1,0.37526]
[1727445572437,0.37521,2664.5,2664.1,0.37526]
[1727445573233,4.0837,2664.7,2664.2,3.23]
[1727445573234,0.8537,2664.7,2664.2,3.23]
[1727445573437,1.22888,2664.7,2664.3,0.37523]
[1727445574038,1.22888,2664.7,2664.4,0.37522]
[1727445574039,0.8537,2664.7,2664.4,0.37522]
[1727445574240,3.2078,2664.8,2664.5,0.8018]
[1727445574735,0.37514,2665.0,2664.6,0.37518]
[1727445574934,1.242,2665.1,2664.6,3.23]
[1727445574935,0.4084,2665.1,2664.6,3.23]
[1727445575137,0.4084,2665.1,2664.8,0.37516]
[1727445575941,0.4084,2665.1,2664.7,0.4129]
[1727445576131,3.6384,2665.1,2664.5,3.6344]
[1727445576438,0.37519,2664.6,2664.5,0.4266]
[1727445576630,3.23,2664.9,2664.3,0.4035]
[1727445576833,0.37519,2664.6,2664.3,0.4035]
[1727445577138,0.37521,2664.5,2664.3,0.4035]
[1727445577332,0.4129,2664.8,2664.3,0.4035]
[1727445577735,0.4129,2664.8,2664.1,0.4266]
[1727445577736,0.4129,2664.8,2664.2,3.23]
[1727445578241,0.3752,2664.6,2664.2,3.23]
[1727445578637,0.37521,2664.5,2664.2,3.23]
[1727445578843,0.37521,2664.5,2664.1,0.80186]
[1727445579042,3.23,2664.5,2664.1,0.4266]
[1727445579235,1.23213,2664.4,2664.1,0.4266]
[1727445579835,0.8569,2664.4,2664.1,0.80186]
[1727445580034,1.23212,2664.4,2664.1,0.4266]
[1727445580238,0.37524,2664.3,2664.1,0.4266]
[1727445580442,0.8569,2664.4,2664.1,0.4266]
[1727445580742,0.37524,2664.3,2664.1,0.4266]